bitfinex-derivatives/quotes_ETHF0:USTF0_20260117
["timestamp","ask_amount","ask_price","bid_price","bid_amount"]
[1768666879705,0.97124371,3323.8,3322.5,3.2749566]
[1768666879896,0.00259559,3324.0,3322.5,3.2749566]
[1768666880098,0.97119439,3323.9,3322.5,3.2749566]
[1768666880301,0.00259559,3324.0,3322.5,3.2749566]
[1768666880494,0.97126171,3323.9,3322.5,3.2749566]
[1768666880694,0.00259559,3324.0,3322.5,3.2749566]
[1768666880896,0.97126171,3323.9,3322.5,3.2749566]
[1768666881096,0.97126171,3323.8,3322.5,3.2749566]
[1768666881305,0.00259559,3324.0,3322.5,3.2749566]
[1768666881602,0.97131246,3323.9,3322.5,3.2749566]
[1768666881797,0.97131246,3323.8,3322.5,3.2749566]
[1768666881999,0.00259559,3324.0,3322.5,3.2749566]
[1768666882201,0.97131287,3323.9,3322.5,3.2749566]
[1768666882403,0.97131287,3323.8,3322.5,3.2749566]
[1768666882699,0.00259559,3324.0,3322.5,3.2749566]
[1768666882901,0.97135894,3323.9,3322.5,3.2749566]
[1768666883102,0.97135894,3323.8,3322.5,3.2749566]
[1768666883297,0.00259559,3324.0,3322.5,3.2749566]
[1768666883497,0.97143806,3323.9,3322.5,3.2749566]
[1768666883700,0.97143806,3323.8,3322.5,3.2749566]
[1768666883906,0.00259559,3324.0,3322.5,3.2749566]
[1768666884097,0.97143811,3323.9,3322.5,3.2749566]
[1768666884298,0.97143811,3323.8,3322.5,3.2749566]
[1768666884494,0.00259559,3324.0,3322.5,3.2749566]
[1768666884699,0.97154967,3323.9,3322.5,3.2749566]
[1768666884998,0.97154967,3323.8,3322.5,3.2749566]
[1768666885195,0.9716889,3323.7,3322.5,3.2749566]
[1768666885507,0.00259559,3324.0,3322.5,3.2749566]
[1768666885698,0.97168898,3323.9,3322.5,3.2749566]
[1768666885899,0.00259559,3324.0,3322.5,3.2749566]
[1768666885900,0.97168898,3323.8,3322.5,3.2749566]
[1768666886098,0.97168898,3323.7,3322.5,3.2749566]
[1768666886299,0.00259559,3324.0,3322.5,3.2749566]
[1768666886499,0.97186522,3323.9,3322.5,3.2749566]
[1768666886699,0.97186522,3323.8,3322.5,3.2749566]
[1768666886898,0.00259559,3324.0,3322.5,3.2749566]
[1768666887103,0.97183987,3323.9,3322.5,3.2749566]
[1768666887293,0.00259559,3324.0,3322.5,4.24046874]
[1768666887500,0.97204717,3323.9,3322.5,3.2749566]
[1768666887701,0.00259559,3324.0,3322.5,3.2749566]
[1768666887906,0.97202475,3323.9,3322.5,3.2749566]
[1768666888206,0.00259559,3324.0,3322.5,3.2749566]
[1768666888404,0.97231155,3323.9,3322.5,3.2749566]
[1768666888599,0.00259559,3324.0,3322.5,3.2749566]
[1768666888799,0.97231126,3323.9,3322.5,3.2749566]
[1768666888994,0.00259559,3324.0,3322.5,3.2749566]
[1768666889293,0.97231108,3323.9,3322.5,3.2749566]
[1768666889495,0.00259559,3324.0,3322.5,3.2749566]
[1768666889704,0.97264306,3323.9,3322.5,3.2749566]
[1768666889900,0.00259559,3324.0,3322.5,3.2749566]
[1768666890104,0.97264306,3323.9,3322.5,3.2749566]
[1768666890304,0.00259559,3324.0,3322.5,3.2749566]
[1768666890503,0.97272229,3323.9,3322.5,3.2749566]
[1768666890698,0.00259559,3324.0,3322.5,3.2749566]
[1768666890900,0.97272229,3323.9,3322.5,3.2749566]
[1768666891105,0.00259559,3324.0,3322.5,3.2749566]
[1768666891305,0.97279756,3323.9,3322.7,2.64842762]
[1768666891610,0.97279756,3323.8,3322.7,2.64842762]
[1768666891806,0.00259559,3324.0,3322.7,2.64842762]
[1768666892000,0.97298582,3323.9,3322.7,2.64842762]
[1768666892200,0.97298582,3323.8,3322.7,2.64842762]
[1768666892401,0.96921758,3324.0,3322.7,2.64842762]
[1768666892602,0.97325606,3323.9,3322.7,2.64842762]
[1768666892911,0.97325606,3323.8,3322.7,2.64842762]
[1768666893110,0.96921758,3324.0,3322.7,2.64842762]
[1768666893315,0.97371193,3323.9,3322.7,2.64842762]
[1768666893510,0.97371193,3323.8,3322.7,2.64842762]
[1768666893715,0.96921758,3324.0,3322.7,2.64842762]
[1768666893913,0.97371193,3323.9,3322.7,2.64842762]
[1768666894114,0.97371193,3323.8,3322.7,2.64842762]
[1768666894314,0.97371193,3323.7,3322.7,2.64842762]
[1768666894520,0.96921758,3324.0,3322.7,2.64842762]
[1768666894707,0.97427015,3323.9,3322.7,2.64842762]
[1768666894906,0.97427015,3323.8,3322.7,2.64842762]
[1768666895217,0.97427015,3323.7,3322.7,2.64842762]
[1768666895420,0.97427015,3323.6,3322.7,2.64842762]
[1768666895608,0.96921758,3324.0,3322.7,2.64842762]
[1768666895808,0.97500371,3323.9,3322.7,2.64842762]
[1768666896016,0.97500371,3323.8,3322.7,2.64842762]
[1768666896318,0.97500371,3323.7,3322.7,2.64842762]
[1768666896510,0.97500371,3323.6,3322.7,2.64842762]
[1768666896711,0.97500371,3323.5,3322.7,2.64842762]
[1768666896911,0.96921758,3324.0,3322.7,2.64842762]
[1768666897113,1.27214244,3323.9,3322.7,2.64842762]
[1768666897316,0.97621376,3323.8,3322.7,2.64842762]
[1768666897515,0.97621376,3323.7,3322.9,2.41762882]
[1768666897717,0.00259559,3324.0,3322.9,2.41762882]
[1768666898613,0.00259559,3324.0,3322.0,0.96662199]
[1768666898614,0.00259559,3324.0,3323.3,2.41762882]
[1768666903222,2.67584056,3324.9,3323.6,2.41762882]
[1768666903523,0.96662199,3324.0,3323.1,2.41762882]
[1768666904313,0.00281367,3324.0,3323.1,2.41762882]
[1768666906226,0.96943566,3324.0,3323.1,2.41762882]
[1768666907116,0.96662199,3323.9,3323.1,2.41762882]
[1768666907315,0.00281367,3324.0,3323.1,2.41762882]
[1768666909728,0.97135284,3323.9,3323.1,2.41762882]
[1768666909917,0.97135284,3323.8,3323.1,2.41762882]
[1768666910117,0.00281367,3324.0,3323.1,2.41762882]
[1768666910322,0.97135962,3323.9,3323.1,2.41762882]
[1768666910521,0.00281367,3324.0,3323.1,2.41762882]
[1768666910722,0.97135304,3323.9,3323.1,2.41762882]
[1768666911025,0.00281367,3324.0,3323.1,2.41762882]
[1768666911227,0.97135319,3323.9,3323.1,2.41762882]
[1768666911427,0.00281367,3324.0,3323.1,2.41762882]
[1768666911627,0.97139912,3323.9,3323.1,2.41762882]
[1768666911829,0.00281367,3324.0,3323.1,2.41762882]
[1768666912029,0.97139912,3323.9,3323.1,2.41762882]
[1768666912229,0.00281367,3324.0,3323.1,2.41762882]
[1768666912526,0.97145604,3323.9,3323.1,2.41762882]
[1768666912721,0.00281367,3324.0,3323.1,2.41762882]
[1768666913029,0.97145604,3323.9,3323.1,2.41762882]
[1768666913217,0.97152647,3323.8,3323.1,2.41762882]
[1768666913413,0.00281367,3324.0,3323.1,2.41762882]
[1768666913617,0.97152643,3323.9,3323.1,2.41762882]
[1768666913822,0.00281367,3324.0,3323.1,2.41762882]
[1768666913823,0.97152643,3323.8,3323.1,2.41762882]
[1768666914032,0.00281367,3324.0,3323.1,2.41762882]
[1768666914229,0.97152641,3323.9,3323.1,2.41762882]
[1768666914528,0.97152641,3323.8,3323.1,2.41762882]
[1768666914733,0.00281367,3324.0,3323.1,2.41762882]
[1768666915031,0.97161293,3323.9,3323.1,2.41762882]
[1768666915220,0.97161293,3323.8,3323.1,2.41762882]
[1768666915528,0.00281367,3324.0,3323.1,2.41762882]
[1768666915730,0.97171583,3323.9,3323.1,2.41762882]
[1768666916029,0.97171583,3323.8,3323.1,2.41762882]
[1768666916329,0.00281367,3324.0,3323.1,2.41762882]
[1768666916514,0.9718472,3323.9,3323.1,2.41762882]
[1768666916722,0.9718472,3323.8,3323.1,2.41762882]
[1768666916924,0.00281367,3324.0,3323.1,2.41762882]
[1768666917124,0.9718472,3323.9,3323.1,2.41762882]
[1768666917422,0.9718472,3323.8,3323.1,2.41762882]
[1768666917631,0.00281367,3324.0,3323.1,2.41762882]
[1768666917828,0.97197123,3323.9,3323.1,2.41762882]
[1768666918034,0.97197123,3323.8,3323.1,2.41762882]
[1768666918330,0.97197123,3323.7,3323.1,2.41762882]
[1768666918632,0.00281367,3324.0,3323.1,2.41762882]
[1768666918834,0.97199315,3323.9,3321.9,1.87974692]
[1768666919134,0.96662199,3323.7,3322.5,1.87974692]
[1768666919322,0.00281367,3324.0,3322.9,1.87974692]
[1768666920026,0.96662199,3323.9,3322.9,1.87974692]
[1768666920826,0.00281367,3324.0,3322.9,1.87974692]
[1768666920827,0.96662199,3323.6,3322.9,1.87974692]
[1768666922729,0.96662199,3323.6,3321.5,2.03399938]
[1768666923032,0.96662199,3323.0,3321.5,2.03399938]
[1768666923232,0.96662199,3323.1,3321.7,1.87974692]
[1768666923423,0.96943566,3324.0,3321.7,1.87974692]
[1768666923623,0.96662199,3323.3,3321.7,1.87974692]
[1768666924131,0.96662199,3322.6,3321.7,1.87974692]
[1768666924340,1.27045593,3323.6,3321.7,1.87974692]
[1768666924531,0.96662199,3322.6,3321.7,1.87974692]
[1768666924737,0.96662199,3322.9,3321.7,1.87974692]
[1768666925335,0.96662199,3322.6,3321.7,1.87974692]
[1768666927428,0.96662199,3322.4,3321.7,1.87974692]
[1768666927634,0.96662199,3322.5,3321.7,1.87974692]
[1768666927845,0.96662199,3322.9,3321.7,1.87974692]
[1768666928341,0.96662199,3322.2,3321.5,0.00367246]
[1768666928527,0.96662199,3322.2,3321.5,1.88341938]
[1768666928732,0.96662199,3322.4,3321.5,1.88341938]
[1768666929139,0.96662199,3323.0,3321.5,1.88341938]
[1768666929140,0.96662199,3322.5,3321.5,1.88341938]
[1768666930040,0.96662199,3322.6,3321.5,1.88341938]
[1768666930744,4.75,3323.1,3321.5,1.88341938]
[1768666930947,0.96662199,3322.7,3321.5,1.88341938]
[1768666931747,0.1505,3323.3,3321.5,1.88341938]
[1768666931952,0.96662199,3322.8,3321.5,1.88341938]
[1768666932248,0.96662199,3322.6,3321.5,1.88341938]
[1768666932442,1.18207314,3323.3,3321.5,1.88341938]
[1768666932443,0.1505,3323.3,3321.5,1.88341938]
[1768666932644,0.96662199,3322.7,3321.5,1.88341938]
[1768666933550,0.96662199,3322.5,3321.5,1.88341938]
[1768666934741,0.96662199,3323.1,3321.9,1.87974692]
[1768666934946,0.15048,3323.8,3322.4,1.87974692]
[1768666935147,0.96662199,3323.3,3322.4,1.87974692]
[1768666936543,0.96662199,3323.1,3322.4,1.87974692]
[1768666936739,0.15048,3323.8,3321.8,1.87974692]
[1768666936944,0.96662199,3323.2,3321.9,1.87974692]
[1768666937143,0.96662199,3323.2,3321.5,0.00367246]
[1768666937144,1.739,3323.7,3322.1,1.87974692]
[1768666937344,0.96662199,3323.3,3322.1,1.87974692]
[1768666937546,0.96662199,3323.4,3322.1,1.87974692]
[1768666937741,0.9866521,3323.3,3322.1,1.87974692]
[1768666937941,0.96662199,3323.2,3322.1,1.87974692]
[1768666938137,0.96943566,3324.0,3322.6,1.87974692]
[1768666938138,0.96662199,3323.9,3322.6,1.87974692]
[1768666938339,0.96662199,3323.7,3322.6,1.87974692]
[1768666938848,0.96943566,3324.0,3321.8,1.87974692]
[1768666939051,0.96662199,3323.4,3322.1,1.87974692]
[1768666939951,0.00281367,3324.0,3322.3,1.87974692]
[1768666940141,0.98680017,3323.9,3322.3,1.87974692]
[1768666940336,0.96662199,3323.7,3322.3,1.87974692]
[1768666940956,0.00281367,3324.0,3322.3,1.87974692]
[1768666941143,0.96662199,3323.7,3322.4,1.87974692]
[1768666942051,0.00281367,3324.0,3322.4,1.87974692]
[1768666942254,1.95370157,3323.9,3322.6,1.32449633]
[1768666942455,0.98707958,3323.8,3322.6,1.32449633]
[1768666944052,0.96662199,3323.6,3322.6,1.32449633]
[1768666944253,0.96662199,3323.3,3322.6,1.32449633]
[1768666944650,0.96662199,3323.5,3322.6,1.32449633]
[1768666945657,0.96662199,3323.7,3322.6,1.32449633]
[1768666945845,0.96662199,3323.5,3322.1,1.32449633]
[1768666946354,0.96662199,3323.3,3322.1,1.32449633]
[1768666946954,0.96943566,3324.0,3322.1,1.32449633]
[1768666946955,0.96662199,3322.9,3322.1,1.32449633]
[1768666947460,0.96662199,3323.1,3322.1,1.32449633]
[1768666948044,0.96662199,3322.8,3321.6,1.32449633]
[1768666948655,0.96662199,3322.3,3321.6,1.32449633]
[1768666949458,1.32978104,3323.2,3321.5,0.00367246]
[1768666949654,1.32978104,3323.2,3321.6,1.32449633]
[1768666949655,0.96662199,3322.8,3321.6,1.32449633]
[1768666949850,0.9886288,3322.7,3321.6,1.32449633]
[1768666950051,1.95525079,3322.6,3321.6,1.32449633]
[1768666950259,0.9886288,3322.5,3321.5,0.00367246]
[1768666950456,0.96662199,3322.6,3321.5,0.00367246]
[1768666950662,0.98858374,3322.5,3321.5,1.32816879]
[1768666950862,0.96662199,3322.6,3321.5,1.32816879]
[1768666951058,0.98858417,3322.5,3321.5,1.32816879]
[1768666951251,0.96662199,3322.6,3321.5,1.32816879]
[1768666951453,0.98867,3322.5,3321.5,1.32816879]
[1768666951651,0.96662199,3322.6,3321.5,1.32816879]
[1768666951863,0.98866978,3322.5,3321.5,1.32816879]
[1768666952162,0.96662199,3323.0,3321.4,0.006022]
[1768666952163,0.96662199,3321.9,3321.4,0.006022]
[1768666952459,0.96662199,3321.9,3321.4,0.00468329]
[1768666952662,0.96662199,3322.1,3321.4,0.00468329]
[1768666952866,0.96662199,3322.2,3321.4,0.00468329]
[1768666953066,0.98873624,3322.1,3321.4,0.00787016]
[1768666953263,0.98873624,3322.1,3320.8,0.96662199]
[1768666953264,0.96662199,3321.8,3320.7,1.32449633]
[1768666953564,0.96788492,3322.2,3320.7,1.32449633]
[1768666953765,0.98850577,3322.1,3320.7,1.32449633]
[1768666953957,0.98850577,3322.0,3320.7,1.32449633]
[1768666954153,0.98850577,3321.9,3320.7,1.32449633]
[1768666954354,0.96788492,3322.2,3320.7,1.32812097]
[1768666954661,0.98822006,3322.1,3320.7,1.32812097]
[1768666954861,0.98822006,3322.0,3320.7,1.32812097]
[1768666955165,1.30242306,3322.7,3320.7,1.32812097]
[1768666955358,0.96788492,3322.0,3320.7,1.32812097]
[1768666955553,0.98796152,3321.9,3320.7,1.32812097]
[1768666957163,0.96788492,3321.6,3320.7,0.00362464]
[1768666957367,0.9706277,3321.6,3320.7,0.00362464]
[1768666958368,0.00274278,3321.6,3320.7,0.00362464]
[1768666958669,0.00274278,3321.6,3320.7,1.25591093]
[1768666960974,0.96788492,3321.9,3320.7,0.00362464]
[1768666961168,1.06982905,3321.7,3319.8,1.25228629]
[1768666961355,0.96788492,3321.5,3319.8,1.11136295]
[1768666961556,0.98610095,3321.4,3319.6,0.96788492]
[1768666961858,3.012,3322.1,3319.6,0.00362464]
[1768666962059,1.28799256,3322.0,3319.9,0.96788492]
[1768666962261,0.98548861,3321.9,3319.6,0.00362464]
[1768666962466,0.98548861,3321.8,3319.7,0.96788492]
[1768666962661,0.98548861,3321.7,3319.6,0.00362464]
[1768666962966,0.96788492,3322.0,3319.7,0.00341581]
[1768666962967,0.98548861,3321.6,3319.7,0.00341581]
[1768666963156,0.98548861,3321.5,3319.7,0.00341581]
[1768666963354,0.00390069,3321.8,3320.1,1.25228629]
[1768666963560,0.99224175,3321.7,3320.1,1.25228629]
[1768666963761,0.00390069,3321.8,3320.1,1.25591093]
[1768666964059,0.99226249,3321.7,3320.1,1.25591093]
[1768666964362,0.00390069,3321.8,3320.1,1.25591093]
[1768666964554,0.96788492,3321.6,3320.1,1.25228629]
[1768666964759,0.99200335,3321.5,3320.1,1.25228629]
[1768666964961,0.96788492,3321.6,3320.1,1.25591093]
[1768666965165,0.99199584,3321.5,3320.1,1.25591093]
[1768666965461,0.96788492,3321.6,3320.1,1.25228629]
[1768666965666,0.9917067,3321.5,3320.1,1.25228629]
[1768666965865,0.96788492,3321.6,3320.1,1.25228629]
[1768666966068,0.99167405,3321.5,3320.1,1.25228629]
[1768666966267,0.96788492,3321.6,3320.1,1.25228629]
[1768666966470,0.99151461,3321.5,3320.1,1.25228629]
[1768666966666,0.99151461,3321.4,3320.1,1.25228629]
[1768666966864,0.96788492,3321.6,3320.1,1.25228629]
[1768666967066,0.99150292,3321.5,3320.1,1.25228629]
[1768666967265,0.99150292,3321.4,3320.1,1.25228629]
[1768666967473,0.96788492,3321.6,3320.1,1.25228629]
[1768666967772,0.99135075,3321.5,3320.1,1.25228629]
[1768666967974,0.99135075,3321.4,3320.1,1.25228629]
[1768666968269,0.96788492,3321.6,3320.1,1.25228629]
[1768666968472,0.99138398,3321.5,3320.1,1.25228629]
[1768666968666,0.99138398,3321.4,3320.1,1.25228629]
[1768666968855,0.00390069,3321.8,3320.1,1.25228629]
[1768666969057,1.95927347,3321.7,3320.1,1.25228629]
[1768666969356,0.99138855,3321.6,3320.1,1.25228629]
[1768666970071,0.99138855,3321.5,3320.1,1.25228629]
[1768666970272,0.00390069,3321.8,3320.1,1.25228629]
[1768666970567,0.00390069,3321.8,3319.0,9.85203594]
[1768666970568,0.96788492,3320.6,3319.0,9.85203594]
[1768666970792,0.99123288,3320.5,3319.1,1.25228629]
[1768666971074,0.99123288,3320.4,3319.1,1.25228629]
[1768666971371,0.96788492,3320.1,3317.6,1.25228629]
[1768666971576,5.57488492,3320.5,3319.1,0.00307893]
[1768666971760,0.99086636,3320.4,3319.1,0.00307893]
[1768666971962,0.99086636,3320.3,3319.1,0.00307893]
[1768666972169,0.99086636,3320.2,3319.1,0.00307893]
[1768666972369,0.96788492,3319.2,3317.5,0.97908468]
[1768666972565,0.99012205,3319.1,3317.5,0.82440715]
[1768666972872,0.96788492,3319.7,3317.5,0.82440715]
[1768666973075,0.99026192,3319.6,3317.4,2.18806778]
[1768666973371,0.99026192,3319.5,3317.4,2.19044928]
[1768666973569,0.99026192,3319.4,3317.4,2.19044928]
[1768666973776,0.99026192,3319.3,3317.4,2.19044928]
[1768666974072,0.00280616,3319.6,3317.4,2.34121928]
[1768666974374,0.00280616,3319.6,3317.9,0.00362464]
[1768666974570,0.00280616,3319.6,3318.2,0.00362464]
[1768666974872,0.00280616,3319.6,3318.1,0.97908468]
[1768666975572,0.99662323,3318.8,3317.4,1.06749183]
[1768666975870,3.013,3318.9,3317.4,1.08421466]
[1768666976373,0.15069,3319.1,3317.4,1.08421466]
[1768666977268,0.99662323,3318.1,3310.1,0.1511]
[1768666977570,3.014,3318.5,3315.5,0.15085]
[1768666977769,0.99662323,3318.6,3315.6,3.16485]
[1768666978160,0.99662323,3318.6,3315.6,3.16859191]
[1768666978570,0.99662323,3318.6,3315.7,0.15085]
[1768666978770,2.47998499,3318.4,3315.6,0.00374191]
[1768666978973,2.47998499,3318.4,3309.3,15.0008201]
[1768666978974,0.99662323,3318.0,3315.0,0.15087]
[1768666979172,0.99662323,3318.5,3315.2,0.97908468]
[1768666979367,0.99662323,3318.5,3315.4,0.97908468]
[1768666979867,0.99662323,3318.5,3315.6,0.97908468]
[1768666980062,0.99662323,3318.3,3315.6,0.97908468]
[1768666980466,0.99662323,3318.3,3315.4,0.00216396]
[1768666980682,0.99662323,3317.1,3314.1,0.97908468]
[1768666980870,0.99662323,3317.1,3314.3,0.97908468]
[1768666981173,0.99662323,3317.1,3314.5,0.97908468]
[1768666981372,0.15077,3317.3,3314.5,0.97908468]
[1768666981576,0.99662323,3317.1,3314.5,0.98135547]
[1768666981976,4.01162323,3317.1,3314.5,0.98135547]
[1768666982175,0.99662323,3317.1,3314.7,0.97908468]
[1768666983978,0.00369686,3317.3,3314.9,0.97908468]
[1768666984180,0.00369686,3317.3,3315.3,0.97908468]
[1768666984377,0.00369686,3317.3,3315.5,0.97908468]
[1768666984575,0.99662323,3318.1,3315.5,1.12993468]
[1768666985179,4.01262323,3318.7,3315.7,0.97908468]
[1768666985475,1.00029412,3318.7,3315.7,0.97908468]
[1768666985680,1.00029412,3318.7,3315.9,0.97908468]
[1768666985879,1.00029412,3318.7,3316.2,0.97908468]
[1768666986183,0.98123613,3318.6,3316.2,1.12990468]
[1768666986373,0.00367089,3318.7,3316.4,0.97908468]
[1768666986774,0.00367089,3318.7,3316.6,0.97908468]
[1768666987776,0.00367089,3318.7,3316.8,0.97908468]
[1768666988684,1.14735323,3318.4,3315.4,0.97908468]
[1768666988980,0.99662323,3318.2,3315.4,1.12994468]
[1768666989183,1.97814498,3318.1,3315.6,0.97908468]
[1768666989374,0.98152175,3318.0,3315.6,0.97908468]
[1768666991386,1.48336176,3317.4,3315.6,0.97908468]
[1768666991681,2.47998499,3317.4,3315.6,0.97908468]
[1768666991887,0.99662323,3317.4,3315.6,0.97908468]
[1768666992073,0.99662323,3316.5,3314.5,0.00227079]
[1768666992271,0.98138467,3317.3,3314.5,0.00227079]
[1768666992272,0.99662323,3316.3,3314.5,0.00227079]
[1768666992472,0.99900444,3316.3,3314.5,0.00227079]
[1768666992669,1.97721453,3316.2,3314.5,0.00227079]
[1768666992872,0.99662323,3316.2,3314.5,0.00227079]
[1768666993879,0.00238121,3316.3,3314.5,0.00227079]
[1768666994676,0.99900444,3316.3,3314.5,0.00227079]
[1768666994879,0.99662323,3316.1,3314.5,0.00227079]
[1768666995082,0.99662323,3315.9,3314.5,0.00227079]
[1768666996078,0.00238121,3316.3,3314.5,0.00227079]
[1768666996274,0.97944781,3316.2,3314.5,0.00227079]
[1768666996471,0.00238121,3316.3,3314.5,0.00227079]
[1768666996771,0.9797458,3316.2,3314.5,0.00227079]
[1768666996976,0.00238121,3316.3,3314.5,0.00227079]
[1768666997173,0.97974353,3316.2,3314.5,0.00227079]
[1768666997372,0.97974353,3316.1,3314.5,0.00227079]
[1768666997574,0.00238121,3316.3,3314.5,0.00227079]
[1768666997773,0.99662323,3316.1,3314.5,0.00227079]
[1768666997977,0.98020682,3316.2,3314.5,0.00227079]
[1768666997978,1.97679396,3316.0,3314.5,0.00227079]
[1768666998191,0.9809805,3315.9,3314.5,0.00227079]
[1768666998489,0.00238121,3316.3,3314.5,0.00227079]
[1768666998697,0.98084484,3316.2,3314.5,0.00227079]
[1768666998883,0.00238121,3316.3,3314.5,0.00227079]
[1768666999187,0.98090852,3316.2,3314.5,0.00227079]
[1768666999379,0.98090852,3316.1,3314.5,0.00227079]
[1768666999580,0.00238121,3316.3,3314.5,0.00227079]
[1768666999774,0.98187585,3316.2,3314.5,0.00227079]
[1768666999975,0.98187585,3316.1,3314.5,0.00227079]
[1768667000175,0.98333636,3316.0,3314.5,0.00227079]
[1768667000488,0.00238121,3316.3,3314.5,0.00227079]
[1768667000798,0.98332109,3316.2,3314.5,0.00227079]
[1768667000984,0.98332109,3316.1,3314.5,0.00227079]
[1768667001183,0.98332109,3316.0,3314.5,0.00227079]
[1768667001382,0.00238121,3316.3,3314.5,0.98135547]
[1768667001590,0.00238121,3316.3,3314.7,0.97908468]
[1768667001989,0.006029,3317.4,3315.1,0.7463258]
[1768667002186,0.98441654,3317.3,3315.1,0.8971958]
[1768667002489,0.98441654,3317.2,3315.3,0.7463258]
[1768667002681,0.98441654,3317.1,3315.3,0.7463258]
[1768667002881,0.006029,3317.4,3315.3,0.7463258]
[1768667003082,0.98555199,3317.3,3315.3,0.7463258]
[1768667003389,0.98555199,3317.2,3315.3,0.7463258]
[1768667003591,0.98555199,3317.1,3315.3,0.7463258]
[1768667003882,0.00935551,3317.4,3315.3,0.7463258]
[1768667004083,0.98597374,3317.3,3315.5,0.7463258]
[1768667004291,0.98597374,3317.2,3315.5,0.7463258]
[1768667004485,0.98597374,3317.1,3315.5,0.7463258]
[1768667004684,0.00935551,3317.4,3315.5,0.7463258]
[1768667004888,0.98685392,3317.3,3315.5,0.7463258]
[1768667005083,0.00935551,3317.4,3315.5,0.8971758]
[1768667005084,0.98685392,3317.2,3315.5,0.8971758]
[1768667005289,0.98762744,3317.1,3315.5,0.8971758]
[1768667005483,0.00935551,3317.4,3315.5,0.8971758]
[1768667005684,0.98775327,3317.3,3315.5,0.8971758]
[1768667005885,0.98775327,3317.2,3315.5,0.8971758]
[1768667006084,0.98775327,3317.1,3315.5,0.8971758]
[1768667006284,0.00935551,3317.4,3315.5,0.8971758]
[1768667006594,0.98799146,3317.3,3315.7,0.7463258]
[1768667006789,0.00935551,3317.4,3315.7,0.8971658]
[1768667006790,0.98799146,3317.2,3315.7,0.8971658]
[1768667006988,0.00935551,3317.4,3315.7,0.8971658]
[1768667007193,0.98803127,3317.3,3315.7,0.8971658]
[1768667007393,0.98803127,3317.2,3315.7,0.8971658]
[1768667007594,0.00935551,3317.4,3315.8,0.15084]
[1768667007792,0.98838823,3317.3,3315.9,0.7463258]
[1768667007994,0.00935551,3317.4,3315.9,0.8971658]
[1768667008303,0.00935551,3317.4,3316.1,0.7463258]
[1768667008597,0.00935551,3317.4,3316.0,0.15083]
[1768667012988,0.00935551,3317.4,3315.8,4.065]
[1768667012989,0.15072,3318.4,3316.1,0.15082]
[1768667013190,0.81413867,3318.4,3316.1,0.15082]
[1768667013390,0.66341867,3318.4,3316.2,0.15082]
[1768667014103,0.66701076,3318.4,3315.9,0.34099671]
[1768667014507,0.66701076,3318.4,3316.3,40.8]
[1768667015600,0.66701076,3318.4,3316.5,0.1508]
[1768667015804,0.66701076,3318.4,3316.4,0.3189826]
[1768667015805,0.00359209,3318.4,3316.4,0.3189826]
[1768667016590,0.00359209,3318.4,3316.7,0.1508]
[1768667016794,0.00359209,3318.4,3316.8,4.068]
[1768667021999,0.00359209,3318.4,3316.9,0.15079]
[1768667022194,0.00359209,3318.4,3316.9,0.15329919]
[1768667022993,0.66341867,3318.9,3317.1,1.48382886]
[1768667023307,0.66341867,3318.9,3317.2,0.15078]
[1768667024095,0.66626391,3318.9,3317.2,0.15078]
[1768667024593,0.66626391,3318.9,3317.3,0.15077]
[1768667025401,0.66626391,3318.9,3317.4,40.8]
[1768667026702,0.66626391,3318.9,3317.5,0.15076]
[1768667026904,0.66626391,3318.9,3317.6,4.075]
[1768667027808,0.66626391,3318.9,3317.7,4.076]
[1768667030008,1e-08,3318.9,3317.7,4.076]
[1768667030604,1e-08,3318.9,3317.6,0.15076]
[1768667030911,1e-08,3318.9,3317.7,4.078]
[1768667031300,1e-08,3318.9,3317.7,44.878]
[1768667033315,1e-08,3318.9,3317.7,4.078]
[1768667033812,1e-08,3318.9,3317.8,4.058]
[1768667035311,1e-08,3318.9,3317.7,4.083]
[1768667043425,1e-08,3318.9,3317.7,4.61939096]
[1768667043921,1e-08,3318.9,3317.8,0.53639096]
[1768667044422,1e-08,3318.9,3317.8,0.68714096]
[1768667044619,1e-08,3318.9,3317.9,0.53639096]
[1768667045021,1e-08,3318.9,3317.9,41.33639096]
[1768667046620,1e-08,3318.9,3317.9,40.8]
[1768667047217,0.57027144,3319.6,3317.9,41.33639096]
[1768667047526,0.97403913,3319.5,3317.9,41.48714096]
[1768667047726,0.97403913,3319.4,3317.9,41.48714096]
[1768667047927,0.97403913,3319.3,3317.9,41.48714096]
[1768667048120,0.57027144,3319.6,3317.9,41.48714096]
[1768667048318,0.97405208,3319.5,3317.9,41.48714096]
[1768667048525,0.97405208,3319.4,3317.9,41.48714096]
[1768667048726,0.97405208,3319.3,3317.9,41.48714096]
[1768667048928,0.57394129,3319.6,3317.9,41.48714096]
[1768667049130,0.97426443,3319.5,3317.9,41.48714096]
[1768667049329,0.97426443,3319.4,3317.9,41.48714096]
[1768667049525,0.97426443,3319.3,3317.9,41.48714096]
[1768667049724,0.97426443,3319.2,3317.9,41.48714096]
[1768667049926,0.00366985,3319.6,3318.0,0.53639096]
[1768667050126,1.54476693,3319.5,3317.9,40.95075]
[1768667050330,0.97449549,3319.4,3318.0,4.1]
[1768667050628,0.57027144,3319.5,3318.0,4.1]
[1768667050933,0.97463968,3319.4,3318.0,4.1]
[1768667051132,0.57027144,3319.5,3318.0,4.1]
[1768667051332,0.9746373,3319.4,3318.0,4.1]
[1768667051533,0.57027144,3319.5,3318.0,4.1]
[1768667051733,0.00366985,3319.6,3318.0,4.1]
[1768667051734,1.5451319,3319.4,3318.0,4.1]
[1768667052030,0.57027144,3319.2,3317.8,4.101]
[1768667052232,0.97486046,3319.1,3317.8,4.101]
[1768667052436,0.97486046,3319.0,3317.8,4.101]
[1768667052734,0.97486046,3318.9,3317.7,4.101]
[1768667052924,0.57027144,3319.2,3317.7,4.101]
[1768667053120,0.97502483,3319.1,3317.7,4.101]
[1768667053326,0.97502483,3319.0,3317.7,4.101]
[1768667053531,0.97502483,3318.9,3317.7,4.101]
[1768667053833,0.57027144,3319.2,3317.7,4.101]
[1768667054030,0.9765802,3319.1,3317.7,4.101]
[1768667054232,0.9765802,3319.0,3317.7,4.101]
[1768667054432,0.9765802,3318.9,3317.7,4.101]
[1768667054646,0.57027144,3319.2,3317.7,4.101]
[1768667054845,0.97657389,3319.1,3317.7,4.101]
[1768667055032,0.97657389,3319.0,3317.7,4.101]
[1768667055345,0.97657389,3318.9,3317.7,4.101]
[1768667055527,0.57027144,3319.2,3317.7,4.101]
[1768667055726,0.57027144,3319.0,3317.7,4.103]
[1768667055931,1.54695536,3318.9,3317.7,4.103]
[1768667056128,0.97668392,3318.8,3317.7,4.103]
[1768667056336,0.57027144,3318.9,3317.7,4.103]
[1768667056545,0.9765526,3318.8,3317.7,4.103]
[1768667056747,0.57027144,3318.9,3317.7,4.103]
[1768667057044,0.97639712,3318.8,3317.7,4.103]
[1768667057239,0.57027144,3318.9,3317.7,4.103]
[1768667057444,0.97639259,3318.8,3317.7,4.103]
[1768667057742,0.57027144,3318.9,3317.7,4.103]